[Event "Titled Tuesday Blitz November 16 2021"]
[White "Svidler, Peter"]
[Black "Ahmadzada, Ahmad"]
[WhiteFideId "4102142"]
[BlackFideId "13413007"]
[WhiteElo "2709"]
[BlackElo "2226"]
[Result "1/2-1/2"]
[Round "08"]
[TimeControl "180+1"]
[Date "2021.11.16"]
[WhiteClock "0:00:57"]
[BlackClock "0:00:08"]

1. e4 {[%clk 0:03:00]}  e5 {[%clk 0:02:59]} 2. Nf3 {[%clk 0:03:00]}  Nf6 {[%clk 0:02:59]} 3. d3 {[%clk 0:02:54]}  Nc6 {[%clk 0:02:58]} 4. Be2 {[%clk 0:02:53]}  Bc5 {[%clk 0:02:58]} 5. O-O {[%clk 0:02:53]}  O-O {[%clk 0:02:59]} 6. Nbd2 {[%clk 0:02:53]}  d6 {[%clk 0:02:59]} 7. c3 {[%clk 0:02:53]}  a6 {[%clk 0:02:59]} 8. b4 {[%clk 0:02:52]}  Ba7 {[%clk 0:02:58]} 9. Qc2 {[%clk 0:02:52]}  Ne7 {[%clk 0:02:59]} 10. Re1 {[%clk 0:02:46]}  Ng6 {[%clk 0:02:59]} 11. Nf1 {[%clk 0:02:44]}  h6 {[%clk 0:02:43]} 12. Ng3 {[%clk 0:02:43]}  Nf4 {[%clk 0:02:37]} 13. Bf1 {[%clk 0:02:38]}  Bg4 {[%clk 0:02:32]} 14. Qd1 {[%clk 0:02:09]}  N6h5 {[%clk 0:02:19]} 15. Nxh5 {[%clk 0:02:06]}  Bxh5 {[%clk 0:02:17]} 16. Bxf4 {[%clk 0:02:04]}  exf4 {[%clk 0:02:17]} 17. d4 {[%clk 0:02:04]}  g5 {[%clk 0:02:14]} 18. h3 {[%clk 0:01:52]}  Qf6 {[%clk 0:02:10]} 19. Qd3 {[%clk 0:01:49]}  Rfe8 {[%clk 0:01:57]} 20. e5 {[%clk 0:01:49]}  Qg7 {[%clk 0:01:27]} 21. exd6 {[%clk 0:01:39]}  cxd6 {[%clk 0:01:27]} 22. Nd2 {[%clk 0:01:39]}  d5 {[%clk 0:01:10]} 23. Qf5 {[%clk 0:01:36]}  Red8 {[%clk 0:00:39]} 24. Re7 {[%clk 0:01:34]}  Bg6 {[%clk 0:00:39]} 25. Qg4 {[%clk 0:01:30]}  Qf6 {[%clk 0:00:39]} 26. Rae1 {[%clk 0:01:16]}  Qc6 {[%clk 0:00:38]} 27. h4 {[%clk 0:01:11]}  Qxc3 {[%clk 0:00:32]} 28. Nf3 {[%clk 0:01:11]}  f5 {[%clk 0:00:26]} 29. R1e6 {[%clk 0:00:56]}  fxg4 {[%clk 0:00:19]} 30. Rxg6+ {[%clk 0:00:56]}  Kf8 {[%clk 0:00:20]} 31. Rgg7 {[%clk 0:00:56]}  gxf3 {[%clk 0:00:07]} 32. Ref7+ {[%clk 0:00:55]}  Ke8 {[%clk 0:00:07]} 33. Re7+ {[%clk 0:00:56]}  Kf8 {[%clk 0:00:07]} 34. Ref7+ {[%clk 0:00:56]}  Ke8 {[%clk 0:00:08]} 35. Re7+ {[%clk 0:00:57]}  Kf8 {[%clk 0:00:08]} 1/2-1/2


[Site "https://www.chess.com"]

[Event "Titled Tuesday Blitz November 16 2021"]
[White "Tahbaz, Arash"]
[Black "Erdogdu, Mert"]
[WhiteFideId "12528846"]
[BlackFideId "6301495"]
[WhiteElo "2377"]
[BlackElo "2485"]
[Result "1-0"]
[Round "08"]
[TimeControl "180+1"]
[Date "2021.11.16"]
[WhiteClock "0:01:29"]
[BlackClock "0:00:48"]

1. d4 {[%clk 0:03:00]}  d5 {[%clk 0:02:59]} 2. Nf3 {[%clk 0:03:01]}  e6 {[%clk 0:02:59]} 3. c4 {[%clk 0:03:02]}  c5 {[%clk 0:02:59]} 4. g3 {[%clk 0:02:59]}  Nf6 {[%clk 0:02:59]} 5. Bg2 {[%clk 0:03:00]}  Nc6 {[%clk 0:02:58]} 6. O-O {[%clk 0:03:00]}  Be7 {[%clk 0:02:58]} 7. cxd5 {[%clk 0:02:57]}  exd5 {[%clk 0:02:59]} 8. dxc5 {[%clk 0:02:57]}  Bxc5 {[%clk 0:02:59]} 9. a3 {[%clk 0:02:58]}  Ne4 {[%clk 0:02:59]} 10. b4 {[%clk 0:02:53]}  Bb6 {[%clk 0:02:59]} 11. Bb2 {[%clk 0:02:53]}  O-O {[%clk 0:02:59]} 12. Nc3 {[%clk 0:02:54]}  Nxc3 {[%clk 0:02:59]} 13. Bxc3 {[%clk 0:02:55]}  d4 {[%clk 0:03:00]} 14. Bd2 {[%clk 0:02:55]}  a6 {[%clk 0:02:58]} 15. a4 {[%clk 0:02:54]}  Re8 {[%clk 0:02:58]} 16. Re1 {[%clk 0:02:25]}  Bg4 {[%clk 0:02:54]} 17. Qb1 {[%clk 0:02:19]}  Qd7 {[%clk 0:02:42]} 18. a5 {[%clk 0:02:16]}  Ba7 {[%clk 0:02:41]} 19. b5 {[%clk 0:02:17]}  axb5 {[%clk 0:02:40]} 20. Qxb5 {[%clk 0:02:18]}  Rad8 {[%clk 0:02:07]} 21. Rac1 {[%clk 0:01:53]}  d3 {[%clk 0:01:47]} 22. exd3 {[%clk 0:01:45]}  Rxe1+ {[%clk 0:00:57]} 23. Rxe1 {[%clk 0:01:45]}  h6 {[%clk 0:00:56]} 24. Ne5 {[%clk 0:01:28]}  Nxe5 {[%clk 0:00:53]} 25. Qxe5 {[%clk 0:01:29]}  Qxd3 {[%clk 0:00:48]} 26. Qe8+ {[%clk 0:01:29]} 1-0


[Site "https://www.chess.com"]

[Event "Titled Tuesday Blitz November 16 2021"]
[White "Terry, Renato"]
[Black "Alavi, Sayed Javad"]
[WhiteFideId "3803457"]
[BlackFideId "12500607"]
[WhiteElo "2577"]
[BlackElo "2495"]
[Result "1-0"]
[Round "08"]
[TimeControl "180+1"]
[Date "2021.11.16"]
[WhiteClock "0:00:13"]
[BlackClock "0:00:04"]

1. e4 {[%clk 0:02:54]}  c5 {[%clk 0:02:57]} 2. Nf3 {[%clk 0:02:54]}  e6 {[%clk 0:02:57]} 3. Nc3 {[%clk 0:02:54]}  Nc6 {[%clk 0:02:55]} 4. Bb5 {[%clk 0:02:52]}  Nd4 {[%clk 0:02:49]} 5. O-O {[%clk 0:02:52]}  a6 {[%clk 0:02:48]} 6. Bd3 {[%clk 0:02:50]}  Ne7 {[%clk 0:02:47]} 7. Nxd4 {[%clk 0:02:48]}  cxd4 {[%clk 0:02:48]} 8. Ne2 {[%clk 0:02:49]}  Nc6 {[%clk 0:02:49]} 9. c3 {[%clk 0:02:49]}  Bc5 {[%clk 0:02:47]} 10. Kh1 {[%clk 0:02:44]}  O-O {[%clk 0:02:35]} 11. f4 {[%clk 0:02:42]}  f6 {[%clk 0:02:24]} 12. b4 {[%clk 0:02:39]}  Ba7 {[%clk 0:02:24]} 13. a3 {[%clk 0:02:33]}  b5 {[%clk 0:02:17]} 14. c4 {[%clk 0:02:29]}  bxc4 {[%clk 0:02:11]} 15. Bxc4 {[%clk 0:02:29]}  Bb7 {[%clk 0:02:09]} 16. d3 {[%clk 0:02:28]}  Kh8 {[%clk 0:02:03]} 17. Bd2 {[%clk 0:02:19]}  Ne7 {[%clk 0:01:49]} 18. Bb3 {[%clk 0:01:59]}  d5 {[%clk 0:01:46]} 19. Ng3 {[%clk 0:01:59]}  Qd7 {[%clk 0:01:27]} 20. Qh5 {[%clk 0:01:47]}  Rac8 {[%clk 0:01:14]} 21. f5 {[%clk 0:01:32]}  e5 {[%clk 0:01:13]} 22. Rf3 {[%clk 0:01:33]}  Ng8 {[%clk 0:00:55]} 23. exd5 {[%clk 0:01:24]}  Bxd5 {[%clk 0:00:56]} 24. Bxd5 {[%clk 0:01:25]}  Qxd5 {[%clk 0:00:56]} 25. Ne4 {[%clk 0:01:26]}  Rc2 {[%clk 0:00:38]} 26. Rh3 {[%clk 0:00:48]}  h6 {[%clk 0:00:37]} 27. Rg3 {[%clk 0:00:45]}  Qf7 {[%clk 0:00:34]} 28. Qg4 {[%clk 0:00:43]}  Rd8 {[%clk 0:00:23]} 29. h3 {[%clk 0:00:43]}  Rd7 {[%clk 0:00:21]} 30. a4 {[%clk 0:00:41]}  Qb3 {[%clk 0:00:18]} 31. b5 {[%clk 0:00:41]}  axb5 {[%clk 0:00:17]} 32. axb5 {[%clk 0:00:42]}  Qxb5 {[%clk 0:00:17]} 33. Qg6 {[%clk 0:00:34]}  Qb2 {[%clk 0:00:16]} 34. Rd1 {[%clk 0:00:18]}  Bc5 {[%clk 0:00:14]} 35. Bxh6 {[%clk 0:00:14]}  Nxh6 {[%clk 0:00:12]} 36. Nxf6 {[%clk 0:00:13]}  gxf6 {[%clk 0:00:04]} 37. Qxh6+ {[%clk 0:00:13]} 1-0


[Site "https://www.chess.com"]

[Event "Titled Tuesday Blitz November 16 2021"]
[White "Tologon tegin, Semetei"]
[Black "Yeletsky, Ivan"]
[WhiteFideId "13800574"]
[BlackFideId "24180327"]
[WhiteElo "2224"]
[BlackElo "2352"]
[Result "0-1"]
[Round "08"]
[TimeControl "180+1"]
[Date "2021.11.16"]
[WhiteClock "0:00:06"]
[BlackClock "0:00:03"]

1. e4 {[%clk 0:03:00]}  e5 {[%clk 0:02:58]} 2. Nf3 {[%clk 0:02:59]}  Nc6 {[%clk 0:02:57]} 3. Be2 {[%clk 0:02:58]}  Nf6 {[%clk 0:02:57]} 4. d3 {[%clk 0:02:58]}  d5 {[%clk 0:02:57]} 5. Nbd2 {[%clk 0:02:58]}  a5 {[%clk 0:02:55]} 6. O-O {[%clk 0:02:57]}  Bc5 {[%clk 0:02:54]} 7. a4 {[%clk 0:02:55]}  O-O {[%clk 0:02:54]} 8. c3 {[%clk 0:02:55]}  Qe7 {[%clk 0:02:49]} 9. h3 {[%clk 0:02:53]}  Rd8 {[%clk 0:02:49]} 10. Qc2 {[%clk 0:02:51]}  h6 {[%clk 0:02:43]} 11. Re1 {[%clk 0:02:51]}  Be6 {[%clk 0:02:26]} 12. Nf1 {[%clk 0:02:50]}  dxe4 {[%clk 0:02:15]} 13. dxe4 {[%clk 0:02:50]}  Nd7 {[%clk 0:02:15]} 14. Ng3 {[%clk 0:02:44]}  Kh7 {[%clk 0:02:12]} 15. Bb5 {[%clk 0:02:34]}  g6 {[%clk 0:02:08]} 16. Nf1 {[%clk 0:02:12]}  Na7 {[%clk 0:02:02]} 17. Be2 {[%clk 0:02:04]}  Nc8 {[%clk 0:02:01]} 18. Ne3 {[%clk 0:02:04]}  Nd6 {[%clk 0:01:47]} 19. Ng4 {[%clk 0:02:03]}  Bxg4 {[%clk 0:01:39]} 20. hxg4 {[%clk 0:02:03]}  Nf6 {[%clk 0:01:39]} 21. Nd2 {[%clk 0:01:34]}  Qe6 {[%clk 0:01:39]} 22. g5 {[%clk 0:01:25]}  hxg5 {[%clk 0:01:35]} 23. Bd3 {[%clk 0:01:19]}  g4 {[%clk 0:01:34]} 24. Nf1 {[%clk 0:01:18]}  Kg7 {[%clk 0:01:34]} 25. Be3 {[%clk 0:01:12]}  Bxe3 {[%clk 0:01:33]} 26. Rxe3 {[%clk 0:01:11]}  Rh8 {[%clk 0:01:32]} 27. Ng3 {[%clk 0:01:11]}  Rh4 {[%clk 0:01:32]} 28. Kf1 {[%clk 0:01:10]}  Nh5 {[%clk 0:01:31]} 29. Nxh5+ {[%clk 0:01:00]}  Rxh5 {[%clk 0:01:32]} 30. Ke2 {[%clk 0:00:59]}  Rh2 {[%clk 0:01:31]} 31. Rg1 {[%clk 0:00:57]}  Rah8 {[%clk 0:01:26]} 32. Kd1 {[%clk 0:00:53]}  Rh1 {[%clk 0:01:26]} 33. Ree1 {[%clk 0:00:53]}  Rxg1 {[%clk 0:01:26]} 34. Rxg1 {[%clk 0:00:54]}  Qf6 {[%clk 0:01:24]} 35. Qd2 {[%clk 0:00:50]}  b6 {[%clk 0:01:19]} 36. Kc2 {[%clk 0:00:49]}  Rh2 {[%clk 0:01:14]} 37. Qe3 {[%clk 0:00:47]}  Nb7 {[%clk 0:01:07]} 38. Qg3 {[%clk 0:00:46]}  Qf4 {[%clk 0:01:06]} 39. b4 {[%clk 0:00:32]}  Nd6 {[%clk 0:01:06]} 40. Qxf4 {[%clk 0:00:18]}  exf4 {[%clk 0:01:06]} 41. e5 {[%clk 0:00:19]}  Nb7 {[%clk 0:00:56]} 42. Be4 {[%clk 0:00:18]}  Nd8 {[%clk 0:00:56]} 43. Kb3 {[%clk 0:00:17]}  f3 {[%clk 0:00:48]} 44. gxf3 {[%clk 0:00:17]}  gxf3 {[%clk 0:00:49]} 45. Bxf3 {[%clk 0:00:14]}  Rxf2 {[%clk 0:00:48]} 46. Bd5 {[%clk 0:00:11]}  Rd2 {[%clk 0:00:48]} 47. Kc4 {[%clk 0:00:11]}  Re2 {[%clk 0:00:31]} 48. Kd4 {[%clk 0:00:11]}  c6 {[%clk 0:00:22]} 49. Bc4 {[%clk 0:00:11]}  Rd2+ {[%clk 0:00:21]} 50. Ke3 {[%clk 0:00:11]}  Rb2 {[%clk 0:00:18]} 51. bxa5 {[%clk 0:00:07]}  bxa5 {[%clk 0:00:18]} 52. Kd3 {[%clk 0:00:07]}  Ne6 {[%clk 0:00:18]} 53. Bxe6 {[%clk 0:00:06]}  fxe6 {[%clk 0:00:19]} 54. Rf1 {[%clk 0:00:06]}  Ra2 {[%clk 0:00:13]} 55. Rf6 {[%clk 0:00:06]}  Rxa4 {[%clk 0:00:12]} 56. Rxe6 {[%clk 0:00:07]}  c5 {[%clk 0:00:09]} 57. Rc6 {[%clk 0:00:06]}  g5 {[%clk 0:00:07]} 58. Rxc5 {[%clk 0:00:06]}  g4 {[%clk 0:00:07]} 59. c4 {[%clk 0:00:03]}  g3 {[%clk 0:00:06]} 60. Ke3 {[%clk 0:00:03]}  Ra3+ {[%clk 0:00:07]} 61. Ke2 {[%clk 0:00:03]}  Kf7 {[%clk 0:00:07]} 62. Rc6 {[%clk 0:00:03]}  a4 {[%clk 0:00:07]} 63. Rf6+ {[%clk 0:00:04]}  Ke7 {[%clk 0:00:07]} 64. c5 {[%clk 0:00:05]}  Ra2+ {[%clk 0:00:03]} 65. Kf3 {[%clk 0:00:04]}  g2 {[%clk 0:00:04]} 66. Rg6 {[%clk 0:00:05]}  a3 {[%clk 0:00:05]} 67. c6 {[%clk 0:00:05]}  Rc2 {[%clk 0:00:05]} 68. Rg7+ {[%clk 0:00:05]}  Ke6 {[%clk 0:00:05]} 69. c7 {[%clk 0:00:05]}  a2 {[%clk 0:00:05]} 70. Rxg2 {[%clk 0:00:06]}  Rc3+ {[%clk 0:00:03]} 71. Ke4 {[%clk 0:00:06]}  a1=Q {[%clk 0:00:04]} 72. c8=Q+ {[%clk 0:00:05]}  Rxc8 {[%clk 0:00:03]} 73. Rg6+ {[%clk 0:00:06]}  Kf7 {[%clk 0:00:03]} 74. Rg7+ {[%clk 0:00:06]}  Kxg7 {[%clk 0:00:03]} 0-1


[Site "https://www.chess.com"]

[Event "Titled Tuesday Blitz November 16 2021"]
[White "Weetik, Vjacheslav"]
[Black "Zhigalko, Sergei"]
[WhiteFideId "4153472"]
[BlackFideId "13502956"]
[WhiteElo "2469"]
[BlackElo "2662"]
[Result "1-0"]
[Round "08"]
[TimeControl "180+1"]
[Date "2021.11.16"]
[WhiteClock "0:00:15"]
[BlackClock "0:00:01"]

1. d4 {[%clk 0:02:59]}  Nf6 {[%clk 0:02:58]} 2. Nf3 {[%clk 0:02:59]}  e6 {[%clk 0:02:58]} 3. Bg5 {[%clk 0:02:59]}  h6 {[%clk 0:02:58]} 4. Bh4 {[%clk 0:02:55]}  b6 {[%clk 0:02:58]} 5. Nbd2 {[%clk 0:02:55]}  Bb7 {[%clk 0:02:59]} 6. e3 {[%clk 0:02:55]}  Be7 {[%clk 0:02:59]} 7. Bd3 {[%clk 0:02:52]}  O-O {[%clk 0:02:59]} 8. O-O {[%clk 0:02:51]}  d6 {[%clk 0:02:59]} 9. Re1 {[%clk 0:02:47]}  Nbd7 {[%clk 0:02:59]} 10. a4 {[%clk 0:02:46]}  a6 {[%clk 0:02:58]} 11. c3 {[%clk 0:02:44]}  Re8 {[%clk 0:02:55]} 12. Qc2 {[%clk 0:02:33]}  c5 {[%clk 0:02:47]} 13. h3 {[%clk 0:02:22]}  Nh5 {[%clk 0:02:42]} 14. Bxe7 {[%clk 0:02:18]}  Qxe7 {[%clk 0:02:43]} 15. b4 {[%clk 0:02:06]}  Rac8 {[%clk 0:02:30]} 16. Qb2 {[%clk 0:02:04]}  Nhf6 {[%clk 0:01:59]} 17. bxc5 {[%clk 0:01:56]}  dxc5 {[%clk 0:02:00]} 18. e4 {[%clk 0:01:56]}  Rc7 {[%clk 0:01:28]} 19. d5 {[%clk 0:01:31]}  Rb8 {[%clk 0:00:47]} 20. c4 {[%clk 0:01:04]}  e5 {[%clk 0:00:47]} 21. Nf1 {[%clk 0:00:57]}  Ne8 {[%clk 0:00:40]} 22. Ne3 {[%clk 0:00:56]}  Nd6 {[%clk 0:00:35]} 23. Nf5 {[%clk 0:00:56]}  Qf6 {[%clk 0:00:25]} 24. a5 {[%clk 0:00:41]}  Bc8 {[%clk 0:00:14]} 25. axb6 {[%clk 0:00:37]}  Rxb6 {[%clk 0:00:14]} 26. Qc3 {[%clk 0:00:38]}  Rb4 {[%clk 0:00:06]} 27. Ra5 {[%clk 0:00:32]}  Nxf5 {[%clk 0:00:04]} 28. exf5 {[%clk 0:00:32]}  e4 {[%clk 0:00:04]} 29. Qxf6 {[%clk 0:00:30]}  Nxf6 {[%clk 0:00:05]} 30. Bxe4 {[%clk 0:00:30]}  Rxc4 {[%clk 0:00:05]} 31. Bd3 {[%clk 0:00:19]}  Rb4 {[%clk 0:00:05]} 32. d6 {[%clk 0:00:16]}  Rd7 {[%clk 0:00:04]} 33. Bxa6 {[%clk 0:00:16]}  Bxa6 {[%clk 0:00:02]} 34. Rxa6 {[%clk 0:00:17]}  Rd8 {[%clk 0:00:02]} 35. Re7 {[%clk 0:00:15]}  Rb1+ {[%clk 0:00:01]} 36. Kh2 {[%clk 0:00:15]} 1-0


[Site "https://www.chess.com"]

[Event "Titled Tuesday Blitz November 16 2021"]
[White "Yanchenko, Roman"]
[Black "Drygalov, Andrey"]
[WhiteFideId "4137329"]
[BlackFideId "24171735"]
[WhiteElo "2514"]
[BlackElo "2540"]
[Result "1/2-1/2"]
[Round "08"]
[TimeControl "180+1"]
[Date "2021.11.16"]
[WhiteClock "0:00:10"]
[BlackClock "0:00:05"]

1. d4 {[%clk 0:03:00]}  Nf6 {[%clk 0:02:59]} 2. c4 {[%clk 0:03:01]}  e6 {[%clk 0:02:59]} 3. Nf3 {[%clk 0:03:01]}  d5 {[%clk 0:02:59]} 4. Nc3 {[%clk 0:03:00]}  c6 {[%clk 0:02:58]} 5. cxd5 {[%clk 0:03:00]}  exd5 {[%clk 0:02:58]} 6. Bg5 {[%clk 0:03:00]}  Be7 {[%clk 0:02:57]} 7. e3 {[%clk 0:03:00]}  Bf5 {[%clk 0:02:55]} 8. Bd3 {[%clk 0:03:00]}  Bxd3 {[%clk 0:02:55]} 9. Qxd3 {[%clk 0:03:01]}  Nbd7 {[%clk 0:02:55]} 10. O-O {[%clk 0:03:01]}  O-O {[%clk 0:02:55]} 11. Bf4 {[%clk 0:02:57]}  Re8 {[%clk 0:02:49]} 12. Rab1 {[%clk 0:02:56]}  Nf8 {[%clk 0:02:48]} 13. b4 {[%clk 0:02:56]}  Bd6 {[%clk 0:02:36]} 14. Be5 {[%clk 0:02:51]}  a6 {[%clk 0:02:22]} 15. a4 {[%clk 0:02:50]}  Ng6 {[%clk 0:02:14]} 16. Bg3 {[%clk 0:02:38]}  Ne4 {[%clk 0:02:12]} 17. Rfc1 {[%clk 0:02:38]}  Bxg3 {[%clk 0:02:04]} 18. hxg3 {[%clk 0:02:38]}  b5 {[%clk 0:02:04]} 19. Nd2 {[%clk 0:02:30]}  Nd6 {[%clk 0:02:04]} 20. Nb3 {[%clk 0:02:25]}  Nc4 {[%clk 0:02:02]} 21. Nc5 {[%clk 0:02:25]}  Nf8 {[%clk 0:01:59]} 22. Ra1 {[%clk 0:02:21]}  Ne6 {[%clk 0:01:55]} 23. axb5 {[%clk 0:01:52]}  axb5 {[%clk 0:01:55]} 24. Ne2 {[%clk 0:01:52]}  Qf6 {[%clk 0:01:40]} 25. Nxe6 {[%clk 0:01:22]}  Qxe6 {[%clk 0:01:19]} 26. Nf4 {[%clk 0:01:22]}  Qe7 {[%clk 0:01:08]} 27. Qc3 {[%clk 0:01:21]}  Ra4 {[%clk 0:01:08]} 28. Nd3 {[%clk 0:01:16]}  Rea8 {[%clk 0:01:07]} 29. Nc5 {[%clk 0:01:13]}  Ra3 {[%clk 0:01:07]} 30. Qe1 {[%clk 0:00:49]}  g6 {[%clk 0:01:03]} 31. Rxa3 {[%clk 0:00:44]}  Rxa3 {[%clk 0:01:02]} 32. Ra1 {[%clk 0:00:44]}  Qa7 {[%clk 0:01:02]} 33. Rxa3 {[%clk 0:00:44]}  Qxa3 {[%clk 0:01:03]} 34. Nb7 {[%clk 0:00:44]}  Kg7 {[%clk 0:00:43]} 35. Kh2 {[%clk 0:00:42]}  Qb2 {[%clk 0:00:33]} 36. Na5 {[%clk 0:00:38]}  Nxa5 {[%clk 0:00:19]} 37. bxa5 {[%clk 0:00:39]}  Qa3 {[%clk 0:00:18]} 38. Qd2 {[%clk 0:00:37]}  b4 {[%clk 0:00:18]} 39. a6 {[%clk 0:00:37]}  b3 {[%clk 0:00:16]} 40. Qc3 {[%clk 0:00:38]}  Qxa6 {[%clk 0:00:16]} 41. Qxb3 {[%clk 0:00:36]}  Qe2 {[%clk 0:00:16]} 42. Qc3 {[%clk 0:00:29]}  Qxf2 {[%clk 0:00:14]} 43. Qxc6 {[%clk 0:00:29]}  Qf5 {[%clk 0:00:14]} 44. Qd6 {[%clk 0:00:24]}  h5 {[%clk 0:00:15]} 45. Kg1 {[%clk 0:00:19]}  Qe4 {[%clk 0:00:13]} 46. Kf2 {[%clk 0:00:19]}  g5 {[%clk 0:00:11]} 47. Qc7 {[%clk 0:00:16]}  Kg6 {[%clk 0:00:11]} 48. Qc6+ {[%clk 0:00:15]}  Kg7 {[%clk 0:00:09]} 49. Qc7 {[%clk 0:00:15]}  Qf5+ {[%clk 0:00:09]} 50. Kg1 {[%clk 0:00:14]}  Qe6 {[%clk 0:00:09]} 51. Kf2 {[%clk 0:00:13]}  Kg6 {[%clk 0:00:09]} 52. Qb8 {[%clk 0:00:12]}  Kg7 {[%clk 0:00:08]} 53. Qc7 {[%clk 0:00:12]}  Qf6+ {[%clk 0:00:08]} 54. Kg1 {[%clk 0:00:12]}  Qf5 {[%clk 0:00:09]} 55. Qc3 {[%clk 0:00:11]}  Qg4 {[%clk 0:00:07]} 56. Kh2 {[%clk 0:00:11]}  h4 {[%clk 0:00:05]} 57. gxh4 {[%clk 0:00:11]}  Qxh4+ {[%clk 0:00:06]} 58. Kg1 {[%clk 0:00:11]}  Qe4 {[%clk 0:00:06]} 59. Qd2 {[%clk 0:00:11]}  Kg6 {[%clk 0:00:06]} 60. Qf2 {[%clk 0:00:12]}  f5 {[%clk 0:00:07]} 61. Qf3 {[%clk 0:00:09]}  f4 {[%clk 0:00:04]} 62. Qxe4+ {[%clk 0:00:07]}  dxe4 {[%clk 0:00:04]} 63. Kf2 {[%clk 0:00:07]}  Kf5 {[%clk 0:00:05]} 64. g3 {[%clk 0:00:07]}  f3 {[%clk 0:00:04]} 65. Kf1 {[%clk 0:00:06]}  Ke6 {[%clk 0:00:05]} 66. Ke1 {[%clk 0:00:06]}  Kd5 {[%clk 0:00:05]} 67. g4 {[%clk 0:00:07]}  Kc4 {[%clk 0:00:05]} 68. Kd2 {[%clk 0:00:07]}  Kd5 {[%clk 0:00:04]} 69. Ke1 {[%clk 0:00:07]}  Kd6 {[%clk 0:00:04]} 70. Kf2 {[%clk 0:00:07]}  Ke6 {[%clk 0:00:04]} 71. Kf1 {[%clk 0:00:08]}  Kd6 {[%clk 0:00:04]} 72. Kf2 {[%clk 0:00:08]}  Kc6 {[%clk 0:00:05]} 73. Kf1 {[%clk 0:00:08]}  Kd5 {[%clk 0:00:06]} 74. Kf2 {[%clk 0:00:09]}  Kc4 {[%clk 0:00:06]} 75. Kf1 {[%clk 0:00:09]}  Kd5 {[%clk 0:00:03]} 76. Kf2 {[%clk 0:00:10]}  Kc6 {[%clk 0:00:04]} 77. Kf1 {[%clk 0:00:10]}  Kb5 {[%clk 0:00:05]} 78. Kf2 {[%clk 0:00:10]}  Kc4 {[%clk 0:00:05]} 79. Kf1 {[%clk 0:00:10]}  Kd5 {[%clk 0:00:05]} 1/2-1/2


[Site "https://www.chess.com"]

[Event "Titled Tuesday Blitz November 16 2021"]
[White "Zierk, Steven"]
[Black "Tillyaev, Ulugbek"]
[WhiteFideId "2034255"]
[BlackFideId "14202441"]
[WhiteElo "2494"]
[BlackElo "2341"]
[Result "1-0"]
[Round "08"]
[TimeControl "180+1"]
[Date "2021.11.16"]
[WhiteClock "0:00:05"]
[BlackClock "0:00:03"]

1. b3 {[%clk 0:03:00]}  d6 {[%clk 0:02:57]} 2. Bb2 {[%clk 0:02:59]}  Nd7 {[%clk 0:02:57]} 3. Nf3 {[%clk 0:02:58]}  Ngf6 {[%clk 0:02:55]} 4. d4 {[%clk 0:02:57]}  g6 {[%clk 0:02:55]} 5. g3 {[%clk 0:02:57]}  Bg7 {[%clk 0:02:55]} 6. Bg2 {[%clk 0:02:58]}  O-O {[%clk 0:02:55]} 7. O-O {[%clk 0:02:58]}  e5 {[%clk 0:02:54]} 8. dxe5 {[%clk 0:02:58]}  Ng4 {[%clk 0:02:53]} 9. Qd2 {[%clk 0:02:58]}  Ngxe5 {[%clk 0:02:49]} 10. Nxe5 {[%clk 0:02:58]}  Nxe5 {[%clk 0:02:44]} 11. c4 {[%clk 0:02:58]}  a5 {[%clk 0:02:43]} 12. f4 {[%clk 0:02:55]}  Nd7 {[%clk 0:02:36]} 13. Bxg7 {[%clk 0:02:55]}  Kxg7 {[%clk 0:02:37]} 14. Nc3 {[%clk 0:02:56]}  Re8 {[%clk 0:02:32]} 15. e4 {[%clk 0:02:54]}  Nc5 {[%clk 0:02:15]} 16. Qd4+ {[%clk 0:02:52]}  f6 {[%clk 0:02:12]} 17. Rae1 {[%clk 0:02:42]}  Ne6 {[%clk 0:02:01]} 18. Qd2 {[%clk 0:02:41]}  Nc5 {[%clk 0:01:49]} 19. Kh1 {[%clk 0:02:36]}  Bd7 {[%clk 0:01:48]} 20. Qd4 {[%clk 0:02:16]}  Bc6 {[%clk 0:01:38]} 21. Nd5 {[%clk 0:02:10]}  Bxd5 {[%clk 0:00:51]} 22. cxd5 {[%clk 0:02:09]}  Qe7 {[%clk 0:00:52]} 23. Re3 {[%clk 0:02:07]}  Kg8 {[%clk 0:00:44]} 24. Rfe1 {[%clk 0:02:00]}  Qg7 {[%clk 0:00:43]} 25. Bh3 {[%clk 0:01:50]}  Re7 {[%clk 0:00:43]} 26. a3 {[%clk 0:01:40]}  Rae8 {[%clk 0:00:28]} 27. b4 {[%clk 0:01:39]}  axb4 {[%clk 0:00:28]} 28. axb4 {[%clk 0:01:40]}  Nd7 {[%clk 0:00:27]} 29. Be6+ {[%clk 0:01:35]}  Kh8 {[%clk 0:00:27]} 30. Rc1 {[%clk 0:01:33]}  Nf8 {[%clk 0:00:27]} 31. f5 {[%clk 0:01:33]}  Nd7 {[%clk 0:00:22]} 32. Rxc7 {[%clk 0:01:30]}  Ne5 {[%clk 0:00:22]} 33. Rc1 {[%clk 0:01:25]}  Qh6 {[%clk 0:00:21]} 34. Rc2 {[%clk 0:01:20]}  Ra8 {[%clk 0:00:20]} 35. Rec3 {[%clk 0:01:14]}  Ree8 {[%clk 0:00:17]} 36. Rc7 {[%clk 0:01:09]}  Qh5 {[%clk 0:00:16]} 37. Kg2 {[%clk 0:01:01]}  Qf3+ {[%clk 0:00:14]} 38. Kg1 {[%clk 0:01:02]}  Qg4 {[%clk 0:00:11]} 39. Qe3 {[%clk 0:00:55]}  Qh3 {[%clk 0:00:06]} 40. fxg6 {[%clk 0:00:46]}  Ra1+ {[%clk 0:00:03]} 41. Rc1 {[%clk 0:00:46]}  Rxc1+ {[%clk 0:00:03]} 42. Rxc1 {[%clk 0:00:42]}  Qh5 {[%clk 0:00:03]} 43. gxh7 {[%clk 0:00:35]}  Ra8 {[%clk 0:00:03]} 44. Rf1 {[%clk 0:00:18]}  Ra2 {[%clk 0:00:03]} 45. Rf2 {[%clk 0:00:18]}  Ra1+ {[%clk 0:00:04]} 46. Kg2 {[%clk 0:00:18]}  Qd1 {[%clk 0:00:04]} 47. Qh6 {[%clk 0:00:13]}  Qg1+ {[%clk 0:00:04]} 48. Kh3 {[%clk 0:00:13]}  Qxf2 {[%clk 0:00:05]} 49. Qf8+ {[%clk 0:00:13]}  Kxh7 {[%clk 0:00:06]} 50. Bf5+ {[%clk 0:00:11]}  Qxf5+ {[%clk 0:00:03]} 51. exf5 {[%clk 0:00:12]}  Ra2 {[%clk 0:00:04]} 52. Qe7+ {[%clk 0:00:10]}  Kg8 {[%clk 0:00:04]} 53. Qxd6 {[%clk 0:00:09]}  Rf2 {[%clk 0:00:05]} 54. Qe6+ {[%clk 0:00:09]}  Kg7 {[%clk 0:00:05]} 55. Qe7+ {[%clk 0:00:08]}  Kg8 {[%clk 0:00:06]} 56. d6 {[%clk 0:00:08]}  Rd2 {[%clk 0:00:06]} 57. g4 {[%clk 0:00:07]}  Rd3+ {[%clk 0:00:06]} 58. Kg2 {[%clk 0:00:06]}  Rd4 {[%clk 0:00:05]} 59. g5 {[%clk 0:00:06]}  Rg4+ {[%clk 0:00:05]} 60. Kf1 {[%clk 0:00:06]}  Rxg5 {[%clk 0:00:05]} 61. Qxf6 {[%clk 0:00:05]}  Nf3 {[%clk 0:00:03]} 62. d7 {[%clk 0:00:05]} 1-0


[Site "https://www.chess.com"]